fUSD/lending_fUSD_20240725
["ID","MTS","AMOUNT","RATE_DAILY","PERIOD"]
[333162184,1721896241263,-500.0,0.00010996,2]
[333162186,1721896241273,-5830.0,0.00010997,2]
[333162188,1721896241283,-932.78721139,0.00010997,2]
[333162190,1721896241295,-2947.77978861,0.00010997,2]
[333162192,1721896241305,-1252.49633294,0.00010997,2]
[333162194,1721896241317,-4019.09127962,0.00010997,2]
[333162196,1721896241329,-315.6,0.00010997,2]
[333162200,1721896241358,-573.27624306,0.00010997,2]
[333162202,1721896241370,-561.78204121,0.00010997,2]
[333162205,1721896241391,-21585.07510317,0.00010997,2]
[333162207,1721896241401,-621.0,0.00010997,2]
[333162209,1721896241411,-249.642,0.00010997,2]
[333162212,1721896241421,-500.0,0.00010998,2]
[333162214,1721896241431,-8842.5679932,0.00010998,2]
[333162216,1721896241440,-2131.8004009,0.00010998,2]
[333162218,1721896241450,-3012.2863549,0.00010998,2]
[333162220,1721896241459,-201.0058381,0.00010998,2]
[333162222,1721896241470,-250.0221641,0.00010998,2]
[333162223,1721896241483,-1858.5879468,0.00010998,2]
[333162225,1721896241492,-500.0,0.00010998,2]
[333162227,1721896241502,-830.76,0.00010998,2]
[333162229,1721896241511,-500.0,0.00010998,2]
[333162231,1721896241522,-237.42051818,0.00010998,2]
[333162233,1721896241531,-500.0,0.00010998,2]
[333162235,1721896241541,-1055.69,0.00010998,2]
[333162237,1721896241551,-500.0,0.00010998,2]
[333162238,1721896241561,-202.5,0.00010998,2]
[333162240,1721896241570,-1187.76,0.00010998,2]
[333162242,1721896241580,-500.0,0.00010998,2]
[333162244,1721896241589,-500.0,0.00010998,2]
[333162246,1721896241599,-152.29,0.00010998,2]
[333162248,1721896241609,-500.0,0.00010998,2]
[333162250,1721896241619,-517.39,0.00010998,2]
[333162252,1721896241628,-983.83,0.00010998,2]
[333162254,1721896241642,-983.83,0.00010998,2]
[333162256,1721896241651,-833.35,0.00010998,2]
[333162258,1721896241661,-946.06015011,0.00010999,2]
[333162260,1721896241670,-817.35009599,0.00010999,2]
[333162265,1721896241711,-462.1932997,0.00010999,2]
[333162268,1721896241726,-975.33194665,0.00010999,2]
[333162270,1721896241735,-500.0,0.00010999,2]
[333162272,1721896241745,-500.0,0.00010999,2]
[333162274,1721896241754,-500.0,0.00010999,2]
[333162276,1721896241764,-500.0,0.00010999,2]
[333162278,1721896241773,-502.89177724,0.00010999,2]
[333162279,1721896241783,-500.0,0.00010999,2]
[333162281,1721896241793,-500.0,0.00010999,2]
[333162283,1721896241803,-205.87985218,0.00010999,2]
[333162285,1721896241813,-308.66069358,0.00010999,2]
[333162287,1721896241822,-500.0,0.00010999,2]
[333162289,1721896241832,-507.04,0.00010999,2]
[333162290,1721896241841,-502.68001848,0.00010999,2]
[333162292,1721896241851,-537.27149021,0.00010999,2]
[333162294,1721896241861,-500.0,0.00010999,2]
[333162296,1721896241871,-500.0,0.00010999,2]
[333162298,1721896241883,-500.0,0.00010999,2]
[333162299,1721896241892,-500.0,0.00010999,2]
[333162300,1721896241902,-500.0,0.00010999,2]
[333162301,1721896241911,-500.0,0.00010999,2]
[333162302,1721896241920,-500.0,0.00010999,2]
[333162303,1721896241930,-500.0,0.00010999,2]
[333162304,1721896241940,-500.0,0.00010999,2]
[333162305,1721896241949,-500.0,0.00010999,2]
[333162306,1721896241959,-500.0,0.00010999,2]
[333162307,1721896241968,-500.0,0.00010999,2]
[333162308,1721896241977,-160.63856214,0.00010999,2]
[333162309,1721896241987,-506.3391164,0.00010999,2]
[333162310,1721896241997,-500.0,0.00010999,2]
[333162311,1721896242006,-307.13,0.00010999,2]
[333162312,1721896242015,-500.0,0.00010999,2]
[333162313,1721896242025,-593.81,0.00010999,2]
[333162315,1721896242035,-500.0,0.00010999,2]
[333162316,1721896242045,-507.26869998,0.00010999,2]
[333162318,1721896242055,-500.0,0.00010999,2]
[333162320,1721896242064,-500.0,0.00010999,2]
[333162322,1721896242073,-500.0,0.00010999,2]
[333162324,1721896242083,-500.0,0.00010999,2]
[333162326,1721896242093,-500.0,0.00010999,2]
[333162328,1721896242102,-533.25,0.00010999,2]
[333162330,1721896242112,-500.0,0.00010999,2]
[333162332,1721896242122,-500.0,0.00010999,2]
[333162334,1721896242132,-500.0,0.00010999,2]
[333162336,1721896242141,-500.0,0.00010999,2]
[333162338,1721896242151,-500.0,0.00010999,2]
[333162340,1721896242161,-500.0,0.00010999,2]
[333162342,1721896242170,-500.0,0.00010999,2]
[333162344,1721896242179,-500.0,0.00010999,2]
[333162346,1721896242189,-500.0,0.00010999,2]
[333162348,1721896242199,-500.0,0.00010999,2]
[333162349,1721896242208,-500.0,0.00010999,2]
[333162351,1721896242218,-500.0,0.00010999,2]
[333162353,1721896242227,-500.0,0.00010999,2]
[333162355,1721896242237,-500.0,0.00010999,2]
[333162357,1721896242246,-500.0,0.00010999,2]
[333162359,1721896242255,-500.0,0.00010999,2]
[333162361,1721896242265,-500.0,0.00010999,2]
[333162363,1721896242276,-409.21488276,0.00010999,2]
[333162365,1721896242286,-1143.12,0.00010999,2]
[333162367,1721896242295,-1143.12,0.00010999,2]
[333162369,1721896242304,-1143.12,0.00010999,2]
[333162371,1721896242314,-1143.12,0.00010999,2]
[333162373,1721896242324,-1143.12,0.00010999,2]
[333162375,1721896242333,-1143.12,0.00010999,2]
[333162377,1721896242344,-1143.12,0.00010999,2]
[333162379,1721896242354,-1143.12,0.00010999,2]
[333162381,1721896242364,-1143.12,0.00010999,2]
[333162383,1721896242373,-1143.12,0.00010999,2]
[333162385,1721896242383,-1143.12,0.00010999,2]
[333162387,1721896242396,-1143.12,0.00010999,2]
[333162389,1721896242406,-1143.12,0.00010999,2]
[333162391,1721896242415,-1143.12,0.00010999,2]
[333162393,1721896242424,-1143.12,0.00010999,2]
[333162395,1721896242434,-1143.12,0.00010999,2]
[333162397,1721896242443,-1143.12,0.00010999,2]
[333162399,1721896242453,-1143.12,0.00010999,2]
[333162401,1721896242462,-1143.12,0.00010999,2]
[333162403,1721896242473,-1143.12,0.00010999,2]
[333162405,1721896242483,-1143.12,0.00010999,2]
[333162407,1721896242492,-1143.12,0.00010999,2]
[333162409,1721896242501,-1143.12,0.00010999,2]
[333162411,1721896242510,-348.73704581,0.00010999,2]
[333162412,1721896242521,-1143.26853671,0.00010999,2]
[333162414,1721896242530,-500.0,0.00010999,2]
[333162416,1721896242539,-500.0,0.00010999,2]
[333162418,1721896242550,-500.0,0.00010999,2]
[333162420,1721896242559,-500.0,0.00010999,2]
[333162422,1721896242568,-500.0,0.00010999,2]
[333162424,1721896242577,-500.0,0.00010999,2]
[333162426,1721896242587,-500.0,0.00010999,2]
[333162428,1721896242596,-500.0,0.00010999,2]
[333162430,1721896242606,-500.0,0.00010999,2]
[333162432,1721896242615,-500.0,0.00010999,2]
[333162434,1721896242624,-400.5,0.00010999,2]
[333162436,1721896242634,-500.0,0.00010999,2]
[333162438,1721896242644,-500.0,0.00010999,2]
[333162440,1721896242653,-500.0,0.00010999,2]
[333162442,1721896242662,-500.0,0.00010999,2]
[333162444,1721896242671,-500.0,0.00010999,2]
[333162446,1721896242680,-500.0,0.00010999,2]
[333162448,1721896242692,-157.28,0.00010999,2]
[333162450,1721896242701,-357.61,0.00010999,2]
[333162452,1721896242710,-500.0,0.00010999,2]
[333162454,1721896242719,-500.0,0.00010999,2]
[333162462,1721896242917,-500.0,0.00010999,2]
[333162463,1721896242927,-500.0,0.00010999,2]
[333162464,1721896242936,-500.0,0.00010999,2]
[333162465,1721896242945,-500.0,0.00010999,2]
[333162466,1721896242955,-500.0,0.00010999,2]
[333162467,1721896242964,-500.0,0.00010999,2]
[333162468,1721896242974,-416.55,0.00010999,2]
[333162469,1721896242983,-500.0,0.00010999,2]
[333162470,1721896242992,-500.0,0.00010999,2]
[333162471,1721896243001,-500.0,0.00010999,2]
[333162472,1721896243010,-500.0,0.00010999,2]
[333162473,1721896243020,-500.0,0.00010999,2]
[333162474,1721896243029,-500.0,0.00010999,2]
[333162475,1721896243038,-500.0,0.00010999,2]
[333162476,1721896243047,-500.0,0.00010999,2]
[333162477,1721896243056,-500.0,0.00010999,2]
[333162478,1721896243065,-500.0,0.00010999,2]
[333162479,1721896243074,-500.0,0.00010999,2]
[333162480,1721896243083,-500.0,0.00010999,2]
[333162482,1721896243093,-500.0,0.00010999,2]
[333162483,1721896243102,-322.19430933,0.00010999,2]
[333162484,1721896243111,-508.86743765,0.00010999,2]
[333162485,1721896243121,-500.0,0.00010999,2]
[333162486,1721896243130,-500.0,0.00010999,2]
[333162488,1721896243139,-500.0,0.00010999,2]
[333162490,1721896243149,-400.31706137,0.00010999,2]
[333162493,1721896243158,-505.10756868,0.00010999,2]
[333162494,1721896243167,-500.0,0.00010999,2]
[333162496,1721896243177,-545.82,0.00010999,2]
[333162498,1721896243186,-500.0,0.00010999,2]
[333162500,1721896243195,-500.0,0.00010999,2]
[333162502,1721896243204,-500.0,0.00010999,2]
[333162504,1721896243214,-509.29828579,0.00010999,2]
[333162506,1721896243223,-500.0,0.00010999,2]
[333162508,1721896243232,-500.0,0.00010999,2]
[333162510,1721896243241,-500.0,0.00010999,2]
[333162512,1721896243250,-500.0,0.00010999,2]
[333162514,1721896243259,-367.32,0.00010999,2]
[333162516,1721896243268,-500.0,0.00010999,2]
[333162518,1721896243277,-440.80328473,0.00010999,2]
[333162520,1721896243293,-59.19671527,0.00010999,2]
[333162522,1721896243302,-500.0,0.00010999,2]
[333162524,1721896243311,-500.0,0.00010999,2]
[333162526,1721896243320,-500.0,0.00010999,2]
[333162528,1721896243329,-500.0,0.00010999,2]
[333162530,1721896243338,-500.0,0.00010999,2]
[333162532,1721896243347,-500.0,0.00010999,2]
[333162534,1721896243356,-500.0,0.00010999,2]
[333162536,1721896243365,-500.0,0.00010999,2]
[333162538,1721896243374,-500.0,0.00010999,2]
[333162540,1721896243384,-500.0,0.00010999,2]
[333162542,1721896243393,-500.0,0.00010999,2]
[333162544,1721896243403,-317.97423621,0.00010999,2]
[333162546,1721896243412,-635.58,0.00010999,2]
[333162548,1721896243421,-623.17,0.00010999,2]
[333162550,1721896243431,-500.0,0.00010999,2]
[333162552,1721896243440,-252.45,0.00010999,2]
[333162554,1721896243449,-638.93,0.00010999,2]
[333162556,1721896243458,-500.0,0.00010999,2]
[333162558,1721896243467,-594.78,0.00010999,2]
[333162560,1721896243480,-220.64,0.00010999,2]
[333162562,1721896243489,-3199.42297596,0.00010999,2]
[333162564,1721896243501,-333.96338908,0.00010999,2]
[333162566,1721896243512,-1508.01899929,0.00010999,2]
[333162568,1721896243523,-812.50746188,0.00010999,2]
[333162570,1721896243532,-258.88,0.00010999,2]
[333162572,1721896243541,-500.0,0.00010999,2]
[333162573,1721896243551,-500.0,0.00010999,2]
[333162575,1721896243561,-500.0,0.00010999,2]
[333162577,1721896243571,-500.0,0.00010999,2]
[333162579,1721896243580,-500.0,0.00010999,2]
[333162581,1721896243589,-500.0,0.00010999,2]
[333162583,1721896243598,-500.0,0.00010999,2]
[333162584,1721896243607,-37.08063873,0.00010999,2]
[333162617,1721896243931,-462.91936127,0.00010999,2]
[333162619,1721896243942,-417.05,0.00010999,2]
[333162621,1721896243952,-19.42231503,0.00010999,2]
[333162623,1721896243964,-480.57768497,0.00010999,2]
[333162625,1721896243974,-500.0,0.00010999,2]
[333162627,1721896243983,-500.0,0.00010999,2]
[333162629,1721896243994,-500.0,0.00010999,2]
[333162632,1721896244004,-500.0,0.00010999,2]
[333162634,1721896244013,-500.0,0.00010999,2]
[333162636,1721896244023,-500.0,0.00010999,2]
[333162638,1721896244033,-438.21339553,0.00010999,2]
[333162640,1721896244046,-61.78660447,0.00010999,2]
[333162642,1721896244056,-500.0,0.00010999,2]
[333162644,1721896244065,-500.0,0.00010999,2]
[333162646,1721896244075,-360.42,0.00010999,2]
[333162648,1721896244084,-500.0,0.00010999,2]
[333162650,1721896244095,-500.0,0.00010999,2]
[333162652,1721896244104,-500.0,0.00010999,2]
[333162654,1721896244113,-418.63089553,0.00010999,2]
[333162657,1721896244129,-81.36910447,0.00010999,2]
[333162659,1721896244140,-500.0,0.00010999,2]
[333162661,1721896244150,-403.78644396,0.00010999,2]
[333162663,1721896244161,-96.21355604,0.00010999,2]
[333162665,1721896244171,-500.0,0.00010999,2]
[333162667,1721896244180,-70.44501776,0.00010999,2]
[333162669,1721896244192,-429.55498224,0.00010999,2]
[333162671,1721896244202,-500.0,0.00010999,2]
[333162673,1721896244212,-500.0,0.00010999,2]
[333162675,1721896244222,-150.16712121,0.00010999,2]
[333162677,1721896244233,-349.83287879,0.00010999,2]
[333162679,1721896244243,-139.45899856,0.00010999,2]
[333162681,1721896244254,-360.54100144,0.00010999,2]
[333162683,1721896244265,-500.0,0.00010999,2]
[333162685,1721896244274,-500.0,0.00010999,2]
[333162687,1721896244284,-500.0,0.00010999,2]
[333162689,1721896244293,-500.0,0.00010999,2]
[333162691,1721896244303,-500.0,0.00010999,2]
[333162693,1721896244312,-500.0,0.00010999,2]
[333162695,1721896244321,-500.0,0.00010999,2]
[333162697,1721896244332,-500.0,0.00010999,2]
[333162699,1721896244342,-500.0,0.00010999,2]
[333162701,1721896244351,-500.0,0.00010999,2]
[333162703,1721896244361,-171.81379702,0.00010999,2]
[333162705,1721896244371,-336.76,0.00010999,2]
[333162707,1721896244382,-313.06,0.00010999,2]
[333162709,1721896244392,-500.0,0.00010999,2]
[333162711,1721896244401,-293.34,0.00010999,2]
[333162713,1721896244411,-500.0,0.00010999,2]
[333162715,1721896244421,-830.76,0.00010999,2]
[333162717,1721896244431,-830.76,0.00010999,2]
[333162719,1721896244440,-830.76,0.00010999,2]
[333162721,1721896244450,-830.76,0.00010999,2]
[333162723,1721896244459,-830.76,0.00010999,2]
[333162725,1721896244470,-830.76,0.00010999,2]
[333162727,1721896244482,-830.76,0.00010999,2]
[333162729,1721896244491,-830.76,0.00010999,2]
[333162731,1721896244500,-830.76,0.00010999,2]
[333162733,1721896244509,-830.76,0.00010999,2]
[333162735,1721896244519,-830.76,0.00010999,2]
[333162737,1721896244528,-830.76,0.00010999,2]
[333162738,1721896244537,-830.76,0.00010999,2]
[333162740,1721896244546,-830.76,0.00010999,2]
[333162742,1721896244557,-830.76,0.00010999,2]
[333162744,1721896244567,-830.76,0.00010999,2]
[333162746,1721896244577,-830.76,0.00010999,2]
[333162748,1721896244586,-830.76,0.00010999,2]
[333162750,1721896244596,-830.76,0.00010999,2]
[333162752,1721896244605,-830.76,0.00010999,2]
[333162754,1721896244614,-830.76,0.00010999,2]
[333162756,1721896244624,-830.94,0.00010999,2]
[333162758,1721896244635,-138.97792496,0.00010999,2]
[333162760,1721896244647,-194.31207504,0.00010999,2]
[333162762,1721896244656,-500.0,0.00010999,2]
[333162765,1721896244666,-500.0,0.00010999,2]
[333162766,1721896244675,-500.0,0.00010999,2]
[333162769,1721896244685,-309.14917864,0.00010999,2]
[333162771,1721896244697,-190.85082136,0.00010999,2]
[333162773,1721896244707,-500.0,0.00010999,2]
[333162775,1721896244716,-453.51293532,0.00010999,2]
[333162777,1721896244727,-154.72706468,0.00010999,2]
[333162779,1721896244736,-500.0,0.00010999,2]
[333162781,1721896244746,-500.0,0.00010999,2]
[333162783,1721896244755,-500.0,0.00010999,2]
[333162784,1721896244764,-500.0,0.00010999,2]
[333162785,1721896244773,-500.0,0.00010999,2]
[333162786,1721896244783,-1055.69,0.00010999,2]
[333162787,1721896244792,-500.0,0.00010999,2]
[333162788,1721896244801,-297.08334441,0.00010999,2]
[333162789,1721896244821,-758.60665559,0.00010999,2]
[333162790,1721896244831,-523.39,0.00010999,2]
[333162791,1721896244840,-1055.69,0.00010999,2]
[333162792,1721896244850,-1055.69,0.00010999,2]
[333162793,1721896244860,-1055.69,0.00010999,2]
[333162794,1721896244869,-1055.69,0.00010999,2]
[333162795,1721896244879,-500.0,0.00010999,2]
[333162796,1721896244891,-1055.69,0.00010999,2]
[333162797,1721896244901,-500.0,0.00010999,2]
[333162798,1721896244912,-500.0,0.00010999,2]
[333162799,1721896244921,-500.0,0.00010999,2]
[333162800,1721896244931,-1055.69,0.00010999,2]
[333162801,1721896244940,-1055.69,0.00010999,2]
[333162802,1721896244950,-649.62,0.00010999,2]
[333162803,1721896244960,-1055.69,0.00010999,2]
[333162804,1721896244970,-1055.69,0.00010999,2]
[333162805,1721896244979,-1055.69,0.00010999,2]
[333162806,1721896244989,-1055.69,0.00010999,2]
[333162807,1721896244998,-1055.69,0.00010999,2]
[333162808,1721896245007,-1055.69,0.00010999,2]
[333162809,1721896245017,-1055.69,0.00010999,2]
[333162810,1721896245026,-1055.69,0.00010999,2]
[333162811,1721896245035,-1055.69,0.00010999,2]
[333162812,1721896245044,-1055.69,0.00010999,2]
[333162813,1721896245053,-1055.69,0.00010999,2]
[333162814,1721896245062,-1055.69,0.00010999,2]
[333162815,1721896245072,-1055.79,0.00010999,2]
[333162816,1721896245081,-500.0,0.00010999,2]
[333162817,1721896245090,-227.11,0.00010999,2]
[333162818,1721896245099,-529.79,0.00010999,2]
[333162819,1721896245108,-504.39803136,0.00010999,2]
[333162820,1721896245117,-1187.76,0.00010999,2]
[333162821,1721896245126,-1187.76,0.00010999,2]
[333162822,1721896245137,-1187.76,0.00010999,2]
[333162823,1721896245146,-500.0,0.00010999,2]
[333162824,1721896245156,-1187.76,0.00010999,2]
[333162825,1721896245166,-1187.76,0.00010999,2]
[333162826,1721896245174,-1187.76,0.00010999,2]
[333162827,1721896245184,-500.0,0.00010999,2]
[333162828,1721896245193,-1187.76,0.00010999,2]
[333162829,1721896245202,-500.0,0.00010999,2]
[333162830,1721896245211,-1187.76,0.00010999,2]
[333162831,1721896245220,-500.0,0.00010999,2]
[333162832,1721896245230,-500.0,0.00010999,2]
[333162833,1721896245241,-1187.76,0.00010999,2]
[333162834,1721896245250,-469.33279936,0.00010999,2]
[333162835,1721896245259,-1187.76,0.00010999,2]
[333162836,1721896245269,-1187.76,0.00010999,2]
[333162838,1721896245278,-1187.76,0.00010999,2]
[333162840,1721896245288,-1187.76,0.00010999,2]
[333162842,1721896245297,-1187.76,0.00010999,2]
[333162844,1721896245306,-1187.76,0.00010999,2]
[333162846,1721896245316,-1187.76,0.00010999,2]
[333162847,1721896245325,-1187.76,0.00010999,2]
[333162848,1721896245334,-1187.76,0.00010999,2]
[333162849,1721896245342,-1187.76,0.00010999,2]
[333162850,1721896245351,-1187.76,0.00010999,2]
[333162851,1721896245360,-1187.76,0.00010999,2]
[333162852,1721896245369,-1187.7634314,0.00010999,2]
[333162853,1721896245378,-500.0,0.00010999,2]
[333162854,1721896245387,-500.0,0.00010999,2]
[333162855,1721896245397,-219.94,0.00010999,2]
[333162856,1721896245406,-500.0,0.00010999,2]
[333162857,1721896245415,-255.0,0.00010999,2]
[333162858,1721896245424,-500.0,0.00010999,2]
[333162859,1721896245433,-257.48938032,0.00010999,2]
[333162860,1721896245443,-504.03385776,0.00010999,2]
[333162861,1721896245452,-983.83,0.00010999,2]
[333162862,1721896245461,-983.83,0.00010999,2]
[333162863,1721896245470,-983.83,0.00010999,2]
[333162864,1721896245482,-983.83,0.00010999,2]
[333162866,1721896245491,-983.83,0.00010999,2]
[333162868,1721896245500,-983.83,0.00010999,2]
[333162870,1721896245510,-983.83,0.00010999,2]
[333162872,1721896245520,-833.35,0.00010999,2]
[333162873,1721896245530,-983.83,0.00010999,2]
[333162874,1721896245538,-833.35,0.00010999,2]
[333162875,1721896245547,-983.83,0.00010999,2]
[333162876,1721896245558,-833.35,0.00010999,2]
[333162877,1721896245567,-983.83,0.00010999,2]
[333162878,1721896245576,-833.35,0.00010999,2]
[333162879,1721896245585,-983.83,0.00010999,2]
[333162880,1721896245594,-983.83,0.00010999,2]
[333162881,1721896245603,-833.35,0.00010999,2]
[333162882,1721896245613,-833.35,0.00010999,2]
[333162883,1721896245622,-833.35,0.00010999,2]
[333162884,1721896245631,-983.83,0.00010999,2]
[333162885,1721896245641,-833.35,0.00010999,2]
[333162886,1721896245650,-983.83,0.00010999,2]
[333162887,1721896245659,-833.35,0.00010999,2]
[333162888,1721896245669,-833.35,0.00010999,2]
[333162889,1721896245678,-983.83,0.00010999,2]
[333162890,1721896245687,-983.83,0.00010999,2]
[333162891,1721896245697,-983.83,0.00010999,2]
[333162892,1721896245706,-833.35,0.00010999,2]
[333162893,1721896245715,-983.83,0.00010999,2]
[333162894,1721896245724,-833.35,0.00010999,2]
[333162895,1721896245733,-983.83,0.00010999,2]
[333162896,1721896245742,-833.35,0.00010999,2]
[333162897,1721896245751,-983.83,0.00010999,2]
[333162898,1721896245760,-505.00906481,0.00010999,2]
[333162899,1721896245769,-833.35,0.00010999,2]
[333162900,1721896245778,-983.87967761,0.00010999,2]
[333162901,1721896245787,-833.35,0.00010999,2]
[333162902,1721896245796,-833.35,0.00010999,2]
[333162903,1721896245806,-833.35,0.00010999,2]
[333162904,1721896245816,-833.35,0.00010999,2]
[333162905,1721896245825,-833.35,0.00010999,2]
[333162906,1721896245835,-833.35,0.00010999,2]
[333162907,1721896245844,-833.35,0.00010999,2]
[333162908,1721896245853,-833.49433724,0.00010999,2]
[333162909,1721896245863,-519.0,0.00011,2]
[333162910,1721896245872,-475600.97879888,0.00011,2]
[333162914,1721896246184,-1963.95623651,0.00011,2]
[333162916,1721896246196,-1980048.59501027,0.00011,2]
[333162917,1721896246208,-3128.12905069,0.00011,2]
[333162918,1721896246220,-3799.999993,0.00011,2]
[333162919,1721896246232,-2743.43994,0.00011,2]
[333162920,1721896246244,-695.84866301,0.00011,2]
[333162921,1721896248080,-500.0,0.00010989,2]
[333162922,1721896248090,-500.0,0.00010998,2]
[333162923,1721896248100,-473.03007506,0.00010999,2]
[333162924,1721896248110,-1596.96490494,0.00011,2]
[333162925,1721896248123,-3178.80000003,0.00011,2]
[333162926,1721896248338,-32346.74855739,0.00011,2]
[333162927,1721896248366,-500.0,0.00010999,2]
[333162928,1721896248376,-6193.15762531,0.00011,2]
[333162972,1721896537135,652.32,8.335e-05,2]
[333162998,1721897161676,676.78,8.219e-05,2]
[333163021,1721897431891,-990.05544266,9.488e-05,2]
[333163022,1721897431949,-643.41,9.488e-05,2]
[333163023,1721897431961,-444.17197605,9.488e-05,2]
[333163024,1721897432006,-653.26372546,9.488e-05,2]
[333163025,1721897432065,-3831.78525663,9.488e-05,2]
[333163026,1721897432075,-300.0,9.588e-05,2]
[333163027,1721897432084,-151.32101212,9.888e-05,2]
[333163028,1721897432093,-550.51033648,9.961e-05,2]
[333163029,1721897432104,-1320.15039067,9.961e-05,2]
[333163030,1721897432122,-129.33927285,9.961e-05,2]
[333163031,1721897432131,-313.35572715,0.0001,2]
[333163032,1721897432143,-10186.64427285,0.0001,2]
[333163033,1721897432152,-250.0,0.00010029,2]
[333163034,1721897432162,-384.0,0.00010065,2]
[333163035,1721897432171,-778.39,0.00010078,2]
[333163036,1721897432180,-947.45304109,0.00010103,2]
[333163037,1721897432189,-2455.43,0.00010143,2]
[333163038,1721897432198,-616.0,0.00010245,2]
[333163039,1721897432208,-676.78,0.00010463,2]
[333163040,1721897432218,-2284.1087,0.00010584,2]
[333163041,1721897432227,-1993.59,0.00010599,2]
[333163042,1721897432236,-500.0,0.00010684,2]
[333163043,1721897432245,-600.0,0.00010684,2]
[333163044,1721897432255,-2100.0,0.00010684,2]
[333163045,1721897432264,-11711.83208327,0.0001089,2]
[333163046,1721897432274,-5036.0,0.000109,2]
[333163047,1721897432283,-160.86395712,0.000109,2]
[333163048,1721897432292,-163.36125358,0.000109,2]
[333163049,1721897432301,-1500.0,0.000109,2]
[333163050,1721897432310,-1500.0,0.000109,2]
[333163051,1721897432320,-1500.0,0.000109,2]
[333163052,1721897432329,-1500.0,0.000109,2]
[333163053,1721897432338,-1500.0,0.000109,2]
[333163054,1721897432347,-1500.0,0.000109,2]
[333163055,1721897432356,-1500.0,0.000109,2]
[333163056,1721897432366,-1500.0,0.000109,2]
[333163057,1721897432377,-1743.65,0.000109,2]
[333163058,1721897432387,-1500.0,0.000109,2]
[333163059,1721897432396,-391.82414349,0.000109,2]
[333163060,1721897432406,-150.0,0.00010957,2]
[333163061,1721897432415,-487.5946339,0.00010958,2]
[333163062,1721897432425,-156.4153661,0.00010958,2]
[333163063,1721897432434,-589.84790817,0.00010958,2]
[333163064,1721897432443,-617.23,0.00010958,2]
[333163065,1721897432452,-500.0,0.00010958,2]
[333163066,1721897432462,-250.0,0.00010959,2]
[333163067,1721897432470,-561.782,0.00010997,2]
[333163068,1721897432479,-3877.113,0.00010997,2]
[333163069,1721897432489,-150.0,0.00010997,2]
[333163070,1721897432498,-9454.7724174,0.00010998,2]
[333163071,1721897432508,-1443.3919538,0.00010998,2]
[333163072,1721897432517,-1847.1844033,0.00010998,2]
[333163073,1721897432527,-500.0,0.00010998,2]
[333163074,1721897432536,-500.0,0.00010998,2]
[333163075,1721897432545,-236.51503753,0.00010999,2]
[333163076,1721897432555,-500.0,0.00010999,2]
[333163077,1721897432564,-500.0,0.00010999,2]
[333163078,1721897432573,-352.95298119,0.00010999,2]
[333163079,1721897432583,-582.33630398,0.00010999,2]
[333163080,1721897432592,-500.0,0.00010999,2]
[333163081,1721897432601,-500.0,0.00010999,2]
[333163082,1721897432611,-500.0,0.00010999,2]
[333163083,1721897432621,-500.0,0.00010999,2]
[333163084,1721897432630,-500.0,0.00010999,2]
[333163085,1721897432640,-500.0,0.00010999,2]
[333163086,1721897432650,-500.0,0.00010999,2]